Cogmind - Beta 16 @@@ ROGUE MODE // 2025.10.25 @ 18:00:29 Player: Finestep Result: Destroyed by S-27 Virus with Autogun Performance ------------- Evolutions (4) 2000 Regions Visited (16) 3200 Robots Destroyed (199) 995 Value Destroyed (8753) 8753 Prototype IDs (34) 680 Alien Tech Used (0) 0 Bonus (3886) 3886 TOTAL SCORE: 19514 Bonus ------- High Alert Combat Kills 765 Follower Combat Kills 521 Entered Garrisons 600 Used RIF Installer 1500 Entered DSFs 500 Cogmind --------- Core Integrity 0/850 Matter 129/300 Energy 90/100 System Corruption 1% Temperature Cool (0) Movement Core (50) Location -6/Factory Parts ------- > --- POWER (1) -------- (None) > --- PROPULSION (5) --- (None) > --- UTILITY (6) ------ Advanced Sensor Array Experimental Targeting Computer Relay Coupler [NC] (39) Relay Coupler [Sentry] (31) Relay Coupler [Behemoth] (15) > --- WEAPON (3) ------- (None) > --- INVENTORY (5) ---- Energy Well (303) Advanced Shield Generator Heavy Rocket Launcher Peak State ------------ > --- POWER ------------ Light Antimatter Reactor > --- PROPULSION ------- Improved Medium Treads Improved Medium Treads Improved Medium Treads Improved Medium Treads Armored Wheel > --- UTILITY ---------- Improved Cooling System Huge Storage Unit Improved Utility Shielding Hardened Medium Armor Plating Hardened Medium Armor Plating Graphene Brace > --- WEAPON ----------- Railgun Heavy Assault Cannon > --- INVENTORY -------- Antimatter Reactor Matter Compressor Hardened Medium Armor Plating Hacking Suite Hacking Suite Hacking Suite Relay Coupler [NC] Relay Coupler [NC] Relay Coupler [Grunt] Relay Coupler [Brawler] Army-in-a-Box Proton Cannon HERF Cannon Heavy Assault Cannon Proton Missile Launcher Heavy Rocket Launcher Heavy Rocket Launcher Remote Datajack Spear [Rating: 75] Favorites ----------- Power Improved Ion Engine Engine Improved Ion Engine Power Core Light Nuclear Core Reactor Light Antimatter Reactor Propulsion Aluminum Leg Treads Light Treads Leg Aluminum Leg Wheel Armored Wheel Flight Unit Nuclear Pulse Thruster Utility Advanced Targeting Computer Device Cooling System Storage Huge Storage Unit Processor Advanced Targeting Computer Hackware Hacking Suite Protection Hardened Medium Armor Plating Weapon Minigun Energy Gun Small Laser Energy Cannon Proton Cannon Ballistic Gun Minigun Ballistic Cannon Heavy Assault Cannon Launcher Missile Launcher Special Weapon Remote Datajack Slashing Weapon Greatsword Piercing Weapon Spear Build | -11 -10 -9 -9 -9 -8 -8 -8 -8 -8 -7 -7 -7 -7 -6 -6 -6 ------- Run | Yrd Mat Mat Min Exi Min Mat Gar Mat Gar Fac Was Fac DSF Fac Gar Fac Slots Evolved 8 | . . 2 . . . 2 . . . 2 . . . 2 . . Power . | . . . . . . . . . . . . . . . . . Propulsion 3 | . . 1 . . . 1 . . . 1 . . . . . . Utility 4 | . . 1 . . . 1 . . . 1 . . . 1 . . Weapon 1 | . . . . . . . . . . . . . . 1 . . Parts Attached 164 | 9 12 23 2 2 4 17 11 9 7 7 2 2 10 4 27 16 Power 18 | 2 1 2 . . . 3 2 1 1 1 . . 1 . 3 1 Engine 7 | 2 . 2 . . . 2 . . . . . . 1 . . . Core 9 | . 1 . . . . 1 2 1 1 1 . . . . 1 1 Reactor 2 | . . . . . . . . . . . . . . . 2 . Propulsion 62 | 3 8 9 . 1 2 7 4 1 4 2 1 1 4 . 10 5 Treads 19 | 1 . . . . . 3 . 1 4 1 1 . 4 . 4 . Leg 26 | 2 8 9 . 1 . 1 . . . . . . . . 5 . Wheel 12 | . . . . . 2 3 4 . . 1 . 1 . . 1 . Hover . | . . . . . . . . . . . . . . . . . Flight 5 | . . . . . . . . . . . . . . . . 5 Utility 52 | 2 . 8 1 1 2 3 2 4 2 1 1 1 3 3 10 8 Device 14 | 1 . 2 . . 1 . . 1 . . 1 1 3 . 2 2 Storage 6 | 1 . 1 . 1 1 1 . . . . . . . . . 1 Processor 5 | . . . . . . 2 . . . . . . . . 1 2 Hackware 15 | . . . 1 . . . 1 2 . 1 . . . 2 5 3 Protection 12 | . . 5 . . . . 1 1 2 . . . . 1 2 . Artifact . | . . . . . . . . . . . . . . . . . Weapon 32 | 2 3 4 1 . . 4 3 3 . 3 . . 2 1 4 2 Energy Gun 3 | 1 2 . . . . . . . . . . . . . . . Energy Cannon 3 | . . . . . . . . . . 1 . . 1 . 1 . Ballistic Gun 12 | 1 . 4 . . . 3 1 2 . . . . . . 1 . Ballistic Cannon 2 | . . . . . . . . . . 1 . . 1 . . . Launcher 4 | . . . 1 . . . 1 . . . . . . 1 1 . Special Weapon 4 | . 1 . . . . . . 1 . 1 . . . . . 1 Impact Weapon . | . . . . . . . . . . . . . . . . . Slashing Weapon 1 | . . . . . . . . . . . . . . . . 1 Piercing Weapon 3 | . . . . . . 1 1 . . . . . . . 1 . Special Melee Weapon . | . . . . . . . . . . . . . . . . . Unidentified Prototypes 2 | . . 1 . . . 1 . . . . . . . . . . Parts Lost 55 | . 4 1 . . . . 3 1 4 . . . 3 . 31 8 Power 6 | . 1 . . . . . 1 . 1 . . . . . 2 1 Propulsion 17 | . 1 . . . . . . . 2 . . . . . 9 5 Utility 17 | . . . . . . . 1 . 1 . . . 1 . 13 1 Weapon 15 | . 2 1 . . . . 1 1 . . . . 2 . 7 1 Highest Loss Streak 19 | . 2 1 . . . . 1 1 1 . . . 2 . 19 7 To Critical Strikes . | . . . . . . . . . . . . . . . . . Average Backups 14 | 3 7 8 10 11 13 15 18 17 18 18 19 18 18 18 18 3 Power 1 | . . . 1 1 1 1 . 1 . 1 2 2 1 1 1 . Propulsion 1 | 1 3 1 1 1 2 1 1 1 . . . . . 1 . . Utility 7 | . . 4 5 5 4 6 9 9 10 10 10 9 9 10 11 2 Weapon 4 | . 2 2 3 3 5 5 4 5 5 6 6 6 6 5 4 1 Tool/Special . | . . . . . . . . . . . . . . . . . Unused Backups 38 | . 1 5 . . 2 9 6 . 3 . 1 . 1 2 7 1 Power 4 | . . . . . . 1 . . . . 1 . 1 . 1 . Propulsion 5 | . 1 1 . . . 1 2 . . . . . . . . . Utility 20 | . . 3 . . 1 1 3 . 3 . . . . 2 6 1 Weapon 6 | . . 1 . . . 5 . . . . . . . . . . Tool/Special 3 | . . . . . 1 1 1 . . . . . . . . . Average Slot Usage (%) 92 | . 98 99 100 92 98 99 89 89 96 91 89 78 78 85 84 52 Engine 4 | . 10 . 11 11 11 5 . . . . . . 6 6 . . Core 3 | . 2 10 . . . 3 8 9 8 7 7 7 . . . 2 Treads 8 | . . . . . . 9 8 9 19 28 20 15 19 20 19 6 Leg 14 | . 27 33 33 33 23 4 . . . . . . . . 6 . Wheel 7 | . . . . . 9 22 18 18 15 8 15 9 7 6 1 . Device 5 | . 14 11 3 . 9 8 . . . 6 2 5 4 19 7 9 Storage 10 | . 14 11 11 17 12 9 9 9 9 7 7 7 7 6 5 . Processor 5 | . . . . . . 9 18 18 16 7 4 . . . . 3 Hackware 4 | . . . 7 4 . . 2 2 . . 7 7 6 5 12 17 Protection 7 | . . 10 11 4 9 8 6 5 8 7 7 8 10 6 10 . Energy Gun 1 | . 17 4 . . . . . . . . . . . . . . Ballistic Gun 15 | . 10 16 21 22 22 17 15 16 18 13 7 7 10 . 3 . Peak Build Rating 75 | 7 10 22 20 25 28 40 45 43 42 46 57 62 64 71 75 61 Average Rating 35 | 5 7 15 19 20 26 35 42 42 38 44 48 60 59 69 64 31 On Entrance 33 | . 7 10 20 20 25 26 40 43 42 42 45 57 61 63 68 5 Avg Prop Armor Cover (%) 12 | . . . . . 5 9 8 7 15 14 13 13 16 17 21 28 Naked Turns 2 | . . . . . . . . . . . . . . . 2 . Heaviest Build 223 | 14 14 36 37 223 223 103 104 100 107 109 108 108 113 118 133 14 Greatest Support 140 | 20 20 33 30 38 38 53 52 40 80 22 22 28 28 28 140 33 Greatest Overweight (x) 11 | 3 . 1 1 7 5 4 2 2 8 9 4 10 4 4 11 1 Average Overweight (x) 1 | . . . 1 2 1 1 1 2 4 7 4 4 3 3 1 . Largest Inventory Capacity 35 | 8 8 10 10 35 35 25 25 25 25 25 25 25 25 25 25 5 Average Capacity 20 | 7 8 9 10 25 21 22 25 25 25 25 25 25 25 25 24 5 Most Carried 25 | 5 8 10 10 20 24 25 25 25 25 25 25 25 25 25 25 5 Average Carried 18 | 3 7 8 9 12 19 21 24 23 24 24 24 24 24 24 23 3 Final Capacity 35 | 8 8 10 10 35 20 25 25 25 25 25 25 25 25 25 5 5 Final Carried 25 | 5 8 10 10 20 19 25 25 23 25 25 25 25 25 25 5 3 Class Distribution -------------------- 40% | Mutant 19% | Bothacker-Mutant 12% | Commander-Mutant 10% | Hauler-Mutant 7% | Scavenger-Mutant 4% | Bothacker-Tank Dominant Class ---------------- Mutant | -10/Materials Scavenger-Mutant | -9/Materials Mutant | -9/Mines Hauler-Mutant | -9/Exiles Commander-Mutant | -8/Mines Mutant | -8/Materials Mutant | -8/Garrison Mutant | -8/Materials Bothacker-Mutant | -8/Garrison Bothacker-Mutant | -7/Factory Bothacker-Mutant | -7/Waste Bothacker-Mutant | -7/Factory Bothacker-Mutant | -7/DSF Bothacker-Tank | -6/Factory Tank | -6/Garrison Mutant | -6/Factory Resources | -11 -10 -9 -9 -9 -8 -8 -8 -8 -8 -7 -7 -7 -7 -6 -6 -6 ----------- Run | Yrd Mat Mat Min Exi Min Mat Gar Mat Gar Fac Was Fac DSF Fac Gar Fac Matter Collected 8371 | 344 285 653 224 262 138 712 999 421 1017 59 752 . 664 482 1315 44 Remotely . | . . . . . . . . . . . . . . . . . Salvage Created 8460 | 223 768 856 144 149 114 640 1349 255 879 59 798 . 514 266 1392 54 Parts 444 | 9 43 52 11 13 5 52 62 17 52 8 10 . 33 6 63 8 Haulers Intercepted 7 | . . 1 . . . 5 . . . . . . 1 . . . Recyclers Shooed 5 | . 1 2 . . . . . 1 . . . . . 1 . . Parts Field Recycled . | . . . . . . . . . . . . . . . . . Retrieved Matter . | . . . . . . . . . . . . . . . . . Parts Self-Destructed . | . . . . . . . . . . . . . . . . . Prevented . | . . . . . . . . . . . . . . . . . Parts Restored . | . . . . . . . . . . . . . . . . . Kills | -11 -10 -9 -9 -9 -8 -8 -8 -8 -8 -7 -7 -7 -7 -6 -6 -6 ------- Run | Yrd Mat Mat Min Exi Min Mat Gar Mat Gar Fac Was Fac DSF Fac Gar Fac Combat Hostiles Destroyed 167 | . 16 19 7 . 4 9 35 5 20 1 3 . 10 5 28 5 Melee 5 | . . . . . . . . . . . 3 . . . 2 . Guns 114 | . 15 19 1 . 4 9 25 5 20 1 . . 9 . 6 . Cannons 18 | . . . . . . . . . . . . . 1 . 17 . AOE 26 | . . . 6 . . . 10 . . . . . . 5 . 5 Classes Destroyed 18 | 2 4 3 . . . 3 . 1 1 . 1 . 2 . 1 . Builder 1 | . . . . . . 1 . . . . . . . . . . Tunneler 6 | 5 . . . . . . . . . 1 . . . . . . Hauler 7 | . . 1 . . . 5 . . . . . . 1 . . . Recycler 7 | 1 1 1 . . 1 1 . 1 . . . . . 1 . . Mechanic 1 | . 1 . . . . . . . . . . . . . . . Operator 1 | . . 1 . . . . . . . . . . . . . . Watcher 8 | . 3 2 . . . . 1 1 . . . . . . 1 . Swarmer 51 | . 3 7 4 . 4 4 11 2 4 . . . 4 3 . 5 Grunt 69 | . 13 7 3 . . 1 19 1 8 . . . 3 2 12 . Brawler 1 | . . . . . . . . . 1 . . . . . . . Duelist 1 | . . . . . . . . 1 . . . . . . . . Sentry 18 | . . 5 . . . 2 1 1 3 . . . . . 6 . Specialist 1 | . . . . . . . . . . . . . 1 . . . Hunter 10 | . . . . . . 1 1 . 2 . . . . 1 5 . Programmer 12 | . . . . . . 1 3 . 2 1 . . 1 . 4 . Heavy 1 | . . . . . . . . . . . . . 1 . . . Behemoth 1 | . . . . . . . . . . . . . . . 1 . Compactor 3 | . . . . . . . . . . . 3 . . . . . Best Kill Streak 9 | 3 6 4 3 . 3 3 9 2 3 1 1 . 4 4 6 5 Combat Bots Only 9 | . 5 4 3 . 3 3 9 2 3 1 1 . 4 3 5 5 Max Kills in Single Turn 3 | 1 1 2 3 . 1 1 3 1 1 1 1 . 1 2 2 2 Gunslinging 1 | . . 1 . . . . . . . . . . . . . . Exploded 3 | . . . 3 . . . 3 . . . . . . 2 . 2 Melee 1 | . . . . . . . . . . . 1 . . . 1 . Uniques/NPCs Destroyed . | . . . . . . . . . . . . . . . . . Combat | -11 -10 -9 -9 -9 -8 -8 -8 -8 -8 -7 -7 -7 -7 -6 -6 -6 -------- Run | Yrd Mat Mat Min Exi Min Mat Gar Mat Gar Fac Was Fac DSF Fac Gar Fac Hostile Shots Fired 1192 | . 103 98 7 . 20 39 148 23 94 6 . . 81 16 512 45 Missed 362 | . 28 38 2 . 8 15 40 6 25 3 . . 7 6 172 12 Hits 830 | . 75 60 5 . 12 24 108 17 69 3 . . 74 10 340 33 Projectile 830 | . 75 60 5 . 12 24 108 17 69 3 . . 74 10 340 33 AOE 1 | . . 1 . . . . . . . . . . . . . . Critical Strikes 23 | . . 2 . . . 1 4 1 4 . . . 4 1 5 1 Actively Blocked 1 | . . . . . . . . . . . . . . 1 . . Part Disruptions 1 | . . . . . . . . . . . . . 1 . . . Damage Taken 11425 | . 889 743 44 . 98 305 1501 241 990 46 20 . 1590 171 4055 732 Core 1507 | . 159 95 . . 17 21 113 12 143 . 20 . 71 38 614 204 Absorbed by Shields 265 | . . 60 . . . . 36 . 64 . . . . . 105 . Reduced by Siege Mode 45 | . . . . . . . . . . . . . 45 . . . Redirected to Shielding 60 | . . . . . . . . . 9 . . . . 18 33 . Regen/Repaired (Parts) 278 | . . 55 . . . 179 . . . . . . . 44 . . Core Remaining (%) 68 | 100 36 . . . 72 . . . 47 . . . 87 . . . Volleys Fired 725 | 18 77 84 7 9 11 57 99 38 80 11 38 . 51 22 117 6 Largest 2 | 2 2 2 2 2 2 2 2 2 2 2 2 . 2 2 2 1 Hottest 125 | 60 100 100 50 50 50 50 50 50 50 75 50 . 90 125 125 39 Shots Fired 1283 | 28 140 158 11 18 22 114 182 66 158 14 69 . 96 27 174 6 Gun 1103 | 28 139 150 8 18 22 114 172 56 158 6 63 . 92 . 77 . Cannon 121 | . . . . . . . . . . 8 . . 4 17 92 . Launcher 24 | . . . 3 . . . 10 . . . . . . 2 4 5 Special 35 | . 1 8 . . . . . 10 . . 6 . . 8 1 1 Kinetic 1057 | 18 60 117 8 18 22 114 172 56 158 9 63 . 93 12 137 . Thermal 134 | 10 80 41 . . . . . . . . . . 3 . . . Explosive 20 | . . . 3 . . . 10 . . . . . . 2 . 5 Electromagnetic 46 | . . . . . . . . . . 5 . . . 5 36 . Robot Hit Streak 27 | 5 14 12 2 6 8 10 27 10 19 13 10 . 16 7 14 4 Robot Miss Streak 5 | 1 5 5 5 4 3 5 3 3 2 1 1 . 5 3 4 . Penetration Max 1 | . . . . . . . . . . . . . . . 1 . Secondary Targets 17 | . 1 2 . . 1 3 4 1 4 . . . 1 . . . Max Gunslinging Chain 1 | . 1 1 . . 1 1 1 1 1 . . . 1 . . . Shots Hit Robots 869 | 18 86 88 2 13 12 71 146 47 97 4 94 . 63 19 102 7 Core Hits 345 | 7 32 36 9 4 6 24 73 13 39 3 12 . 23 9 47 8 Critical Kills 5 | . . 1 . . . 1 1 1 . . . . . . 1 . Critical Parts Destroyed . | . . . . . . . . . . . . . . . . . Critical Strikes 24 | . . 1 . . . 1 2 1 . . 3 . . 2 10 4 Destroy 5 | . . 1 . . . 1 1 1 . . . . . . 1 . Blast 11 | . . . . . . . . . . . . . . 2 9 . Sever 4 | . . . . . . . . . . . . . . . . 4 Impale 4 | . . . . . . . 1 . . . 3 . . . . . Melee Attacks 129 | . . . . . . 2 50 1 . 5 37 1 1 5 20 7 Impact . | . . . . . . . . . . . . . . . . . Slashing 7 | . . . . . . . . . . . . . . . . 7 Piercing 122 | . . . . . . 2 50 1 . 5 37 1 1 5 20 . Sneak Attacks 38 | . . . . . . . . . . . 37 . . 1 . . Combat Hostiles 37 | . . . . . . . . . . . 37 . . . . . Follow-up Attacks . | . . . . . . . . . . . . . . . . . Damage Inflicted 20194 | 216 1057 1188 240 260 238 1226 4362 661 1603 77 2003 . 1194 1095 4142 632 Guns 11551 | 216 1057 1188 35 260 238 1226 2010 661 1603 77 957 . 1167 . 856 . Cannons 3363 | . . . . . . . . . . . . . 27 478 2858 . Explosions 2629 | . . . 205 . . . 1365 . . . . . . 488 184 387 Melee 2651 | . . . . . . . 987 . . . 1046 . . 129 244 245 Ramming . | . . . . . . . . . . . . . . . . . Kinetic 13313 | 169 537 917 35 260 238 1226 2010 661 1603 77 957 . 1167 383 3073 . Thermal 1020 | 47 520 271 . . . . . . . . . . 27 155 . . Explosive 2264 | . . . 205 . . . 1365 . . . . . . 333 . 361 Electromagnetic 946 | . . . . . . . . . . . . . . 95 825 26 Impact . | . . . . . . . . . . . . . . . . . Slashing 245 | . . . . . . . . . . . . . . . . 245 Piercing 2406 | . . . . . . . 987 . . . 1046 . . 129 244 . Highest Corruption 18 | . . . . . . 1 1 1 2 1 18 18 13 . . 1 Average Corruption 3 | . . . . . . 1 1 1 1 1 13 16 13 . . 1 Corruption Purged 5 | . . . . . . . . . . . . 5 . . . . Corruption Blocked . | . . . . . . . . . . . . . . . . . Effects 94 | . . . . . . 13 12 4 19 2 16 8 20 . . . Message Errors 22 | . . . . . . 3 4 1 7 . 3 . 4 . . . Matter Fused 19 | . . . . . . 4 2 . 5 1 5 . 2 . . . Heat Flow Errors 18 | . . . . . . 2 . 3 4 1 1 3 4 . . . Energy Discharges 9 | . . . . . . . 2 . 1 . 3 3 . . . . Parts Fused 3 | . . . . . . 1 1 . . . . . 1 . . . Data Loss (minor) 10 | . . . . . . . 3 . . . 2 1 4 . . . Data Loss (major) 2 | . . . . . . . . . 1 . . 1 . . . . Misfires 3 | . . . . . . . . . . . 1 . 2 . . . Alerts 3 | . . . . . . 3 . . . . . . . . . . Weapon Failures 5 | . . . . . . . . . 1 . 1 . 3 . . . Overload Shots . | . . . . . . . . . . . . . . . . . Overflow Damage 241 | . . . 8 . . . 34 . . . . . . 128 62 9 Projectiles 119 | . . . . . . . . . . . . . . 66 53 . Explosions 112 | . . . 8 . . . 34 . . . . . . 61 9 . Melee 10 | . . . . . . . . . . . . . . 1 . 9 Knockbacks 25 | . . . . . . . . . . . . . . 4 21 . Impact . | . . . . . . . . . . . . . . . . . Kinetic 20 | . . . . . . . . . . . . . . 4 16 . Secondary 5 | . . . . . . . . . . . . . . . 5 . Self-Inflicted Damage 100 | . . . . . . . . . 20 . . . . . 33 47 Shots 5 | . . . . . . . . . 1 . . . . . 2 2 Rammed . | . . . . . . . . . . . . . . . . . Targets Rammed . | . . . . . . . . . . . . . . . . . Kicked . | . . . . . . . . . . . . . . . . . Crushed . | . . . . . . . . . . . . . . . . . Highest Temperature 318 | . 215 274 16 16 . 220 148 261 270 165 169 233 242 . 318 . Average Temperature 54 | . 49 43 10 6 . 111 35 94 38 99 39 94 106 . 117 . Received Heat Transfer 3028 | . 444 159 12 . . 90 543 81 286 . 9 . 315 18 1071 . Effects 6 | . . 1 . . . 1 . 2 . . . 1 . . 1 . Energy Bleed 2 | . . 1 . . . . . . . . . . . . 1 . Interference 4 | . . . . . . 1 . 2 . . . 1 . . . . Siege Activations 1 | . . . . . . . . . . . . . 1 . . . Total Turns 18 | . . . . . . . . . . . . . 18 . . . Longest Duration 18 | . . . . . . . . . . . . . 18 . . . Martial Activations . | . . . . . . . . . . . . . . . . . Shielding Activations . | . . . . . . . . . . . . . . . . . Robots Disrupted . | . . . . . . . . . . . . . . . . . Combat Hostiles . | . . . . . . . . . . . . . . . . . Robots Corrupted 3 | . . . . . . . . . . . . . . . 3 . Combat Hostiles 3 | . . . . . . . . . . . . . . . 3 . Parts Fried 2 | . . . . . . . . . . . . . . . 2 . Impact Corruptions . | . . . . . . . . . . . . . . . . . Robots Melted 1 | . 1 . . . . . . . . . . . . . . . Combat Hostiles 1 | . 1 . . . . . . . . . . . . . . . Parts Melted 4 | . 2 2 . . . . . . . . . . . . . . Heat Transferred 2012 | 100 1175 600 . . . . . . . . . . 37 100 . . Parts Sabotaged . | . . . . . . . . . . . . . . . . . Parts Stolen . | . . . . . . . . . . . . . . . . . Parts Stripped . | . . . . . . . . . . . . . . . . . Power Chain Reactions 2 | . . . . . . . . . . . . . . . . 2 Alert | -11 -10 -9 -9 -9 -8 -8 -8 -8 -8 -7 -7 -7 -7 -6 -6 -6 ------- Run | Yrd Mat Mat Min Exi Min Mat Gar Mat Gar Fac Was Fac DSF Fac Gar Fac Maximum Alert Level 4 | . . . 1 . . 1 4 2 3 2 . . 1 . 3 2 Low Security (%) 60 | 100 100 100 96 . 100 96 19 57 20 . 100 100 63 100 15 . Level 1 13 | . . . 3 . . 3 12 . 21 68 . . 36 . 33 37 Level 2 14 | . . . . . . . 21 42 45 31 . . . . 22 62 Level 3 8 | . . . . . . . 24 . 13 . . . . . 28 . Level 4 2 | . . . . . . . 21 . . . . . . . . . Level 5 . | . . . . . . . . . . . . . . . . . High Security . | . . . . . . . . . . . . . . . . . Max Security . | . . . . . . . . . . . . . . . . . Sterilizations 1 | . . . . . . . . . . . . . 1 . . . Peak Influence 1217 | 10 198 131 216 . 98 216 1217 624 897 470 95 5 235 194 867 542 Initial 592 | . . 55 30 . . 28 29 592 40 470 95 . . 123 72 417 Average 267 | 1 76 44 65 . 21 74 676 265 464 360 21 . 142 128 483 441 Influence Increases 6679 | 30 528 623 371 12 207 785 1218 254 897 40 . 6 265 203 1035 205 Destroy 0b10 Robot/C 3760 | . 320 380 260 . 120 420 700 160 400 20 . . 200 120 560 100 Destroy 0b10 Robot/NC 200 | 30 25 25 . 10 5 55 20 10 . 5 . . 5 5 5 . Destroy Leader 590 | . 66 106 40 . 20 136 30 42 20 10 . . 30 30 40 20 Allied During Kill 170 | . . . 47 2 47 60 . 12 . . . . . 2 . . Successful Hack 247 | . 56 44 . . . 46 26 27 16 5 . 5 . . 22 . Select Force Hacks 90 | . 60 30 . . . . . . . . . . . . . . Disable Machine 210 | . . 15 . . 15 60 15 . . . . . 30 30 . 45 Anti-Garrison Action 1050 | . . . . . . . 350 . 400 . . . . . 300 . Destroy Structure 287 | . 1 8 24 . . 8 47 3 61 . . 1 . 16 78 40 Lose Combat Pursuer 75 | . . 15 . . . . 30 . . . . . . . 30 . Influence Decreases 6277 | 30 395 678 449 12 133 814 46 1408 63 665 272 6 30 334 342 600 Entered New Map 1964 | . . 78 48 . . 46 16 625 23 427 177 . . 112 32 380 Time Decay 2663 | 30 355 357 401 12 133 496 . 198 . 238 75 6 . 222 . 140 Lost Part 550 | . 40 10 . . . . 30 10 40 . . . 30 . 310 80 Lost Ally 170 | . . . . . . 100 . 50 . . 20 . . . . . Purge Threat 930 | . . 233 . . . 172 . 525 . . . . . . . . Squads Dispatched 20 | . 4 5 . . . 1 . 4 . 1 . . 1 3 . 1 Investigation 12 | . 2 4 . . . 1 . 2 . 1 . . . 1 . 1 Extermination 1 | . . . . . . . . . . . . . . 1 . . Reinforcement 4 | . 2 1 . . . . . . . . . . 1 . . . Assault . | . . . . . . . . . . . . . . . . . Garrison 3 | . . . . . . . . 2 . . . . . 1 . . Intercept . | . . . . . . . . . . . . . . . . . Searches Triggered . | . . . . . . . . . . . . . . . . . Construction Impeded . | . . . . . . . . . . . . . . . . . Haulers Reinforced . | . . . . . . . . . . . . . . . . . Active Scanning Responses . | . . . . . . . . . . . . . . . . . Cargo Convoy Interrupts . | . . . . . . . . . . . . . . . . . Stealth | -11 -10 -9 -9 -9 -8 -8 -8 -8 -8 -7 -7 -7 -7 -6 -6 -6 --------- Run | Yrd Mat Mat Min Exi Min Mat Gar Mat Gar Fac Was Fac DSF Fac Gar Fac Distress Signals 11 | . 1 2 . . . 2 . 3 . . . . . 2 1 . Communications Jammed . | . . . . . . . . . . . . . . . . . Distress Signals . | . . . . . . . . . . . . . . . . . Times Spotted 257 | . 27 32 12 . 6 28 40 18 20 1 4 . 10 15 33 11 Peak Tracking Total 10 | . 5 5 3 . 3 10 6 6 3 1 2 . 4 4 5 5 Tactical Retreats 5 | . 1 1 . . . . 1 . . . . . . . 2 . Traps | -11 -10 -9 -9 -9 -8 -8 -8 -8 -8 -7 -7 -7 -7 -6 -6 -6 ------- Run | Yrd Mat Mat Min Exi Min Mat Gar Mat Gar Fac Was Fac DSF Fac Gar Fac Traps Triggered 26 | . . . . . . 2 7 . 8 2 . . 1 1 3 2 Indirectly 1 | . . . . . . . . . . . . . . . 1 . Trap Hack Attempts . | . . . . . . . . . . . . . . . . . Triggered . | . . . . . . . . . . . . . . . . . Disarmed . | . . . . . . . . . . . . . . . . . Reprogrammed . | . . . . . . . . . . . . . . . . . Reused . | . . . . . . . . . . . . . . . . . Traps Extracted . | . . . . . . . . . . . . . . . . . Installed . | . . . . . . . . . . . . . . . . . Triggered . | . . . . . . . . . . . . . . . . . Machines | -11 -10 -9 -9 -9 -8 -8 -8 -8 -8 -7 -7 -7 -7 -6 -6 -6 ---------- Run | Yrd Mat Mat Min Exi Min Mat Gar Mat Gar Fac Was Fac DSF Fac Gar Fac Machines Disabled 25 | . . 1 . . 1 4 4 . 6 . . . 2 2 2 3 Max in Single Turn 2 | . . 1 . . 1 1 1 . 2 . . . 1 2 1 2 Garrison Access 1 | . . . . . . . . . . 1 . . . . . . Garrison Relay 9 | . . . . . . . 3 . 4 . . . . . 2 . Phase Generator 1 | . . . . . . . . . 1 . . . . . . . Machines Repaired . | . . . . . . . . . . . . . . . . . Machines Dismantled . | . . . . . . . . . . . . . . . . . Machines Sabotaged . | . . . . . . . . . . . . . . . . . Overloaded Fab Kills . | . . . . . . . . . . . . . . . . . Hacking | -11 -10 -9 -9 -9 -8 -8 -8 -8 -8 -7 -7 -7 -7 -6 -6 -6 --------- Run | Yrd Mat Mat Min Exi Min Mat Gar Mat Gar Fac Was Fac DSF Fac Gar Fac Machines Accessed 54 | . 8 12 . 1 . 11 3 5 2 2 . 2 . 4 3 1 Terminals 36 | . 6 9 . . . 7 3 3 2 1 . 1 . . 3 1 Fabricators . | . . . . . . . . . . . . . . . . . Repair Stations 7 | . . 2 . . . 2 . . . . . 1 . 2 . . Recycling Units 3 | . 2 1 . . . . . . . . . . . . . . Scanalyzers 3 | . . . . . . 1 . 1 . . . . . 1 . . Garrison Access 4 | . . . . . . 1 . 1 . 1 . . . 1 . . Total Hacks 161 | . 20 40 . 1 . 36 9 17 7 2 . 4 . 13 8 4 Successful 86 | . 10 25 . 1 . 20 2 12 1 2 . 2 . 7 4 . Failed 72 | . 9 15 . . . 15 7 5 6 . . 2 . 5 4 4 Catastrophic 15 | . 1 1 . . . 4 2 1 2 . . . . 1 2 1 Database Lockouts 3 | . 1 . . . . 1 . . . . . . . 1 . . Manual 69 | . 8 22 . 1 . 20 2 8 1 . . . . 2 5 . Terminals 121 | . 18 37 . . . 25 9 10 7 1 . 2 . . 8 4 Fabricators . | . . . . . . . . . . . . . . . . . Repair Stations 12 | . . 2 . . . 4 . . . . . 2 . 4 . . Recycling Units 3 | . 2 1 . . . . . . . . . . . . . . Scanalyzers 14 | . . . . . . 2 . 4 . . . . . 8 . . Garrison Access 10 | . . . . . . 5 . 3 . 1 . . . 1 . . Terminal Hacks 47 | . 8 17 . 1 . 9 2 4 1 1 . 1 . . 3 . Part Schematic 4 | . 2 2 . . . . . . . . . . . . . . Robot Schematic 2 | . . 2 . . . . . . . . . . . . . . Robot Analysis 4 | . . 1 . . . 3 . . . . . . . . . . Prototype ID Bank 5 | . 2 2 . . . 1 . . . . . . . . . . Open DSF 2 | . . . . . . . . . . 1 . 1 . . . . Branch Access Points 2 | . . 1 . . . . . 1 . . . . . . . . Emergency Access Points 1 | . . . . . . . . . . . . . . . 1 . Terminal Index 1 | . . . . . . . . 1 . . . . . . . . Unreport Threat 5 | . . 2 . . . 2 . 1 . . . . . . . . Locate Traps 3 | . 2 1 . . . . . . . . . . . . . . Maintenance Status 1 | . . 1 . . . . . . . . . . . . . . Transport Status 1 | . . 1 . . . . . . . . . . . . . . Hauler Manifests 4 | . 1 2 . . . 1 . . . . . . . . . . Registered Components 3 | . . 1 . . . 1 . 1 . . . . . . . . Zone Layout 3 | . 1 1 . . . 1 . . . . . . . . . . Garrison Registry 2 | . . . . . . . 1 . . . . . . . 1 . Patrol Navigation 1 | . . . . . . . 1 . . . . . . . . . Security Stations 2 | . . . . . . . . . 1 . . . . . 1 . Proto ID Catalog 1 | . . . . 1 . . . . . . . . . . . . Fabricator Hacks . | . . . . . . . . . . . . . . . . . Repair Station Hacks 4 | . . . . . . 3 . . . . . 1 . . . . Scan Component 3 | . . . . . . 2 . . . . . 1 . . . . Repair 1 | . . . . . . 1 . . . . . . . . . . Recycling Unit Hacks . | . . . . . . . . . . . . . . . . . Scanalyzer 11 | . . . . . . 2 . 4 . . . . . 5 . . Insert Component 2 | . . . . . . 1 . . . . . . . 1 . . Analyze 3 | . . . . . . 1 . . . . . . . 2 . . Retrieve Study 6 | . . . . . . . . 4 . . . . . 2 . . Garrison Access Hacks 5 | . . . . . . 1 . 2 . 1 . . . 1 . . Unlock Access 3 | . . . . . . 1 . 1 . . . . . 1 . . Seal Access 1 | . . . . . . . . . . 1 . . . . . . Coupler Status 1 | . . . . . . . . 1 . . . . . . . . Unauthorized Hacks 19 | . 2 8 . . . 5 . 2 . . . . . 1 1 . Terminals 11 | . . 5 . . . 3 . 2 . . . . . . 1 . Track 4 | . . 2 . . . 1 . 1 . . . . . . . . Assimilate 1 | . . 1 . . . . . . . . . . . . . . Botnet 3 | . . 1 . . . 1 . 1 . . . . . . . . Disrupt 2 | . . 1 . . . . . . . . . . . . 1 . Operators 1 | . . . . . . 1 . . . . . . . . . . Fabricators . | . . . . . . . . . . . . . . . . . Repair Stations 3 | . . 2 . . . . . . . . . . . 1 . . Patch 3 | . . 2 . . . . . . . . . . . 1 . . Recycling Units 3 | . 2 1 . . . . . . . . . . . . . . Tunnel 3 | . 2 1 . . . . . . . . . . . . . . Scanalyzers . | . . . . . . . . . . . . . . . . . Garrison Access 2 | . . . . . . 2 . . . . . . . . . . Restock 1 | . . . . . . 1 . . . . . . . . . . Reprogram 1 | . . . . . . 1 . . . . . . . . . . Data Cores Recovered 1 | . . 1 . . . . . . . . . . . . . . Used 1 | . . 1 . . . . . . . . . . . . . . Hacking Detections 43 | . 6 9 . . . 10 2 4 2 1 . 2 . 3 3 1 Full Trace Events 6 | . . . . . . . 2 2 1 . . . . . . 1 Feedback Events . | . . . . . . . . . . . . . . . . . Feedback Blocked . | . . . . . . . . . . . . . . . . . Robot Schematics Acquired 2 | . . 2 . . . . . . . . . . . . . . Robots Built . | . . . . . . . . . . . . . . . . . Authchips . | . . . . . . . . . . . . . . . . . Time . | . . . . . . . . . . . . . . . . . Total Robot Build Rating . | . . . . . . . . . . . . . . . . . Part Schematics Acquired 5 | . 1 2 . . . 1 . . . . . . . 1 . . Parts Built . | . . . . . . . . . . . . . . . . . Authchips . | . . . . . . . . . . . . . . . . . Time . | . . . . . . . . . . . . . . . . . Total Part Build Rating . | . . . . . . . . . . . . . . . . . Part Studies Acquired 3 | . . . . . . . . 2 . . . . . 1 . . Parts Repaired 1 | . . . . . . 1 . . . . . . . . . . Time 38 | . . . . . . 38 . . . . . . . . . . Parts Recycled . | . . . . . . . . . . . . . . . . . Recycled Matter . | . . . . . . . . . . . . . . . . . Retrieved Matter . | . . . . . . . . . . . . . . . . . Retrieved Components . | . . . . . . . . . . . . . . . . . Parts Scanalyzed 2 | . . . . . . 1 . . . . . . . 1 . . Part Schematics Acquired 2 | . . . . . . 1 . . . . . . . 1 . . Parts Damaged . | . . . . . . . . . . . . . . . . . Bothacking | -11 -10 -9 -9 -9 -8 -8 -8 -8 -8 -7 -7 -7 -7 -6 -6 -6 ------------ Run | Yrd Mat Mat Min Exi Min Mat Gar Mat Gar Fac Was Fac DSF Fac Gar Fac Used RIF Installer 3 | . . . . . . . 1 . 1 . . . . . 1 . Hotswap 1 | . . . . . . . . . . . . . . . 1 . Robot Detection 1 | . . . . . . . . . 1 . . . . . . . Robots Hacked 14 | . . . . . . . . 3 . . 6 . . 3 1 1 Non-combat 3 | . . . . . . . . 1 . . . . . 1 . 1 Combat 11 | . . . . . . . . 2 . . 6 . . 2 1 . Robot Hacks Applied 21 | . . . . . . . . 7 . . 6 . . 6 1 1 find_fabricator 1 | . . . . . . . . . . . . . . 1 . . drop_inventory 2 | . . . . . . . . . . . . . . 1 . 1 purge_threat 3 | . . . . . . . . 3 . . . . . . . . ignore_targets 6 | . . . . . . . . . . . 6 . . . . . find_garrison 2 | . . . . . . . . 1 . . . . . 1 . . link_fov 1 | . . . . . . . . . . . . . . 1 . . amplify_resonance 2 | . . . . . . . . . . . . . . 1 1 . overwrite_iff 1 | . . . . . . . . . . . . . . 1 . . formatsys_low 1 | . . . . . . . . 1 . . . . . . . . formatsys_high 2 | . . . . . . . . 2 . . . . . . . . Relay Couplers Released 38 | . . . . . . 3 11 . 16 . . . . . 8 . Machine Destruction 35 | . . . . . . . 11 . 16 . . . . . 8 . Programmers 3 | . . . . . . 3 . . . . . . . . . . Attached 11 | . . . . . . . . 2 . 1 . . . 2 3 3 Fabnet Peak Effective % . | . . . . . . . . . . . . . . . . . Robots Rewired 3 | . . . . 3 . . . . . . . . . . . . Allies Hacked . | . . . . . . . . . . . . . . . . . Hacks Repelled . | . . . . . . . . . . . . . . . . . Allies | -11 -10 -9 -9 -9 -8 -8 -8 -8 -8 -7 -7 -7 -7 -6 -6 -6 -------- Run | Yrd Mat Mat Min Exi Min Mat Gar Mat Gar Fac Was Fac DSF Fac Gar Fac Total Allies 12 | . . 1 3 3 . . . 3 . . 1 . . 1 . . Largest Group 6 | . . 1 3 6 6 5 . 3 . . 1 . . 1 . . Highest-Rated Group 90 | . . 10 40 90 90 82 . 41 . . 31 . . 21 . . Highest-Rated Ally 31 | . . 10 16 21 21 21 . 16 . . 31 . . 21 . . Total Orders . | . . . . . . . . . . . . . . . . . Ally Attacks 195 | . . . 31 . 23 59 . 26 . . 51 . . 5 . . Total Damage 2487 | . . . 228 . 167 947 . 226 . . 842 . . 77 . . Kills 28 | . . . 6 . 2 16 . 3 . . . . . 1 . . Allies Corrupted . | . . . . . . . . . . . . . . . . . Allies Melted . | . . . . . . . . . . . . . . . . . Intel | -11 -10 -9 -9 -9 -8 -8 -8 -8 -8 -7 -7 -7 -7 -6 -6 -6 ------- Run | Yrd Mat Mat Min Exi Min Mat Gar Mat Gar Fac Was Fac DSF Fac Gar Fac Active Infowar (turns) 1819 | 84 833 643 . . . . . . . . . . . . . 259 Sensors 259 | . . . . . . . . . . . . . . . . 259 Structural 115 | . . 115 . . . . . . . . . . . . . . Seismic 1445 | 84 833 528 . . . . . . . . . . . . . . Robot Analysis Total 4 | . . 1 . . . 3 . . . . . . . . . . Derelict Logs Recovered 1 | . . . 1 . . . . . . . . . . . . . Drone Launches . | . . . . . . . . . . . . . . . . . Drone Recoveries . | . . . . . . . . . . . . . . . . . Exploration | -11 -10 -9 -9 -9 -8 -8 -8 -8 -8 -7 -7 -7 -7 -6 -6 -6 ------------- Run | Yrd Mat Mat Min Exi Min Mat Gar Mat Gar Fac Was Fac DSF Fac Gar Fac Turns Passed 16176 | 168 833 1232 1323 2722 754 1527 1774 413 1296 515 412 198 366 469 1890 284 Spaces Moved 8220 | 87 461 675 675 863 438 1003 1042 232 704 232 152 71 141 241 800 403 Core 235 | 7 . . . . . . . . . . . . . . 139 89 Treads 414 | 3 . . . . . . . . 2 . . . . . 409 . Legs 3076 | 77 461 675 675 863 192 1 . . . . . . . . 132 . Wheels 4181 | . . . . . 246 1002 1042 232 702 232 152 71 141 241 120 . Hover . | . . . . . . . . . . . . . . . . . Flight 314 | . . . . . . . . . . . . . . . . 314 Fastest Speed 31 | 50 120 120 190 190 115 111 108 120 120 140 140 140 145 135 50 31 Average Speed 156 | 121 120 133 190 305 156 121 124 120 144 185 140 164 152 149 171 41 Slowest Speed 610 | 200 120 190 190 610 470 190 125 125 240 215 140 230 160 160 610 100 Overloaded Moves . | . . . . . . . . . . . . . . . . . Propulsion Burnouts . | . . . . . . . . . . . . . . . . . Robots Hopped 3 | . . . . . . . . . . . . . . . . 3 Potential Cave-ins . | . . . . . . . . . . . . . . . . . Cave-ins Triggered . | . . . . . . . . . . . . . . . . . Exploration Rate (%) 54 | 4 88 53 97 91 88 81 81 29 61 5 77 3 74 14 61 12 Regions Visited 16 Branch Regions 3 Pre-discovered Areas 3 | . 2 1 . . . . . . . . . . . . . . Known Exits Taken 5 | . . 1 . . . 1 . 1 . . . 1 . 1 . . Unknown Exits Taken 5 | 1 1 . 1 1 1 . . . . . . . . . . . Scrap Searched 3 | . . . 2 . 1 . . . . . . . . . . . Spaces Dug 43 | . 1 5 15 . . 2 5 1 . . . 1 . 1 12 . Terrain Destroyed 238 | . 1 8 28 . . 2 25 1 70 . . 1 . 29 34 39 Melee 12 | . . . . . . 2 5 1 . . . 1 . 1 2 . Projectile 44 | . 1 8 . . . . . . . . . . . 3 32 . AOE 182 | . . . 28 . . . 20 . 70 . . . . 25 . 39 Terrain Rammed . | . . . . . . . . . . . . . . . . . Walls Destroyed . | . . . . . . . . . . . . . . . . . Machines Disabled . | . . . . . . . . . . . . . . . . . Actions | -11 -10 -9 -9 -9 -8 -8 -8 -8 -8 -7 -7 -7 -7 -6 -6 -6 --------- Run | Yrd Mat Mat Min Exi Min Mat Gar Mat Gar Fac Was Fac DSF Fac Gar Fac Total 10323 | 117 603 863 704 933 488 1243 1354 321 892 295 251 151 230 311 1071 496 Wait 616 | . 35 31 14 9 24 103 76 29 51 25 1 73 10 23 56 56 Move 8200 | 86 460 674 674 862 437 1002 1041 231 703 232 151 70 140 241 798 398 Hop 2 | . . . . . . . . . . . . . . . . 2 Pick Up 120 | 3 8 15 1 4 5 23 17 1 10 2 3 1 6 5 15 1 Fast Attach 82 | 8 1 5 . 1 2 12 4 2 4 3 2 2 6 1 17 12 Attach 52 | . 3 3 1 . 2 2 5 3 4 3 . 1 4 3 13 5 Detach 9 | 1 . 2 . . 1 . . . 1 1 . . . . . 3 Swap 129 | 1 10 23 6 2 1 10 14 11 3 8 12 . 4 7 16 1 Drop 159 | . 9 26 1 2 5 32 19 5 9 5 7 3 8 4 19 5 Fire 725 | 18 77 84 7 9 11 57 99 38 80 11 38 . 51 22 117 6 Melee 129 | . . . . . . 2 50 1 . 5 37 1 1 5 20 7 Ram . | . . . . . . . . . . . . . . . . . Kick . | . . . . . . . . . . . . . . . . . Crush . | . . . . . . . . . . . . . . . . . Escape Stasis 56 | . . . . . . . 29 . 27 . . . . . . . Rewire 44 | . . . . 44 . . . . . . . . . . . . Trap . | . . . . . . . . . . . . . . . . . Miscellaneous . | . . . . . . . . . . . . . . . . . Route ------- -11/Scrapyard -10/Materials (discovered 5 exits: *Mat x3 / [*Min x2]) -9/Materials (discovered 3 exits: *Mat / *Min x2) -9/Mines (discovered 3 exits: *Mat x2 / *Exi) -9/Exiles -8/Mines (discovered 2 exits: *Mat x2) -8/Materials (discovered 2 exits: *Fac / Gar) -8/Garrison (discovered 4 exits: *Mat x4) -8/Materials -8/Garrison (discovered 2 exits: *Fac x2) -7/Factory -7/Waste -7/Factory -7/DSF -6/Factory (discovered 2 exits: [*Low] / Gar) -6/Garrison (discovered 3 exits: *Fac x3) -6/Factory History --------- Turn | Location | Event 22 | -11/Scrapyard | Discovered new exit (range 16) 169 | -11/Scrapyard | Entered Materials 327 | -10/Materials | Build established: Mutant 455 | -10/Materials | Discovered new exit (range 10) 537 | -10/Materials | Discovered new exit (range 16) 769 | -10/Materials | Derelicts attacked the area 825 | -10/Materials | Core integrity fell below 50% 870 | -10/Materials | Discovered new exit (range 14) 895 | -10/Materials | Discovered new exit (range 14) 926 | -10/Materials | Central database locked down 970 | -10/Materials | Discovered new exit (range 13) 981 | -10/Materials | Build established: Scavenger-Mutant 1002 | -10/Materials | Entered another Materials area 1002 | -9/Materials | Evolved 2 slots: Propulsion x1, Utility x1 1698 | -9/Materials | Identified exit to Mines 1802 | -9/Materials | Discovered new exit (range 17) 1964 | -9/Materials | Build established: Mutant 2234 | -9/Materials | Entered Mines 2244 | -9/Mines | Assisted by bots powering up and referring to "LRC-V3" 2430 | -9/Mines | Discovered new exit (range 5) 2702 | -9/Mines | Learned Materials terminal intel 3130 | -9/Mines | Discovered new exit (range 8) 3490 | -9/Mines | Deemed a non-threat by the Exiles lab entrance 3490 | -9/Mines | Discovered new exit (range 5) 3557 | -9/Mines | Entered Exiles 3557 | -9/Exiles | Found Exiles lab destroyed 3557 | -9/Exiles | Accompanied by 3 allies 4000 | -9/Exiles | Build established: Commander-Mutant 4210 | -9/Exiles | Opened EX-Vault 4928 | -9/Exiles | Build established: Hauler-Mutant 5605 | -9/Exiles | Found Army-in-a-Box 6234 | -9/Exiles | Discovered new exit (range 10) 6279 | -9/Exiles | Entered Mines 6279 | -8/Mines | Accompanied by 6 allies 6506 | -8/Mines | Discovered new exit (range 14) 6645 | -8/Mines | Build established: Commander-Mutant 6988 | -8/Mines | Discovered new exit (range 13) 7033 | -8/Mines | Entered Materials 7033 | -8/Materials | Accompanied by 5 allies 7033 | -8/Materials | Evolved 2 slots: Propulsion x1, Utility x1 7034 | -8/Materials | Loaded intel: 11 terminal locations 7338 | -8/Materials | Discovered new exit (range 16) 7420 | -8/Materials | Lost 3 allies 7603 | -8/Materials | Repaired Hrd. Medium Armor Plating 7683 | -8/Materials | Build established: Mutant 7947 | -8/Materials | Central database locked down 8449 | -8/Materials | Identified exit to Garrison 8560 | -8/Materials | Entered Garrison 8570 | -8/Garrison | Triggered checkpoint 8610 | -8/Garrison | Discovered new exit (range 6) 8870 | -8/Garrison | Triggered checkpoint 8906 | -8/Garrison | Garrison Relay disabled 9040 | -8/Garrison | Triggered checkpoint 9125 | -8/Garrison | Triggered checkpoint 9237 | -8/Garrison | Destroyed 9 combat bots 9496 | -8/Garrison | Triggered checkpoint 9568 | -8/Garrison | Garrison Relay disabled 9715 | -8/Garrison | Discovered new exit (range 10) 10034 | -8/Garrison | Triggered checkpoint 10076 | -8/Garrison | Garrison Relay disabled 10088 | -8/Garrison | Discovered new exit (range 9) 10088 | -8/Garrison | Discovered new exit (range 58) 10088 | -8/Garrison | Discovered new exit (range 81) 10088 | -8/Garrison | Discovered new exit (range 61) 10265 | -8/Garrison | Installed Relay Interface Framework 10334 | -8/Garrison | Entered Materials 10640 | -8/Materials | Garrison activated, responded to threat 10715 | -8/Materials | Lost 3 allies 10737 | -8/Materials | Identified exit to Garrison 10747 | -8/Materials | Entered Garrison 10811 | -8/Garrison | Triggered checkpoint 10884 | -8/Garrison | Garrison Relay disabled 11031 | -8/Garrison | Triggered checkpoint 11187 | -8/Garrison | Build established: Bothacker-Mutant 11189 | -8/Garrison | Discovered new exit (range 11) 11290 | -8/Garrison | Phase Generator disabled 11346 | -8/Garrison | Triggered checkpoint 11422 | -8/Garrison | Garrison Relay disabled 11579 | -8/Garrison | Learned Factory security intel 11601 | -8/Garrison | Triggered checkpoint 11610 | -8/Garrison | Core integrity fell below 50% 11651 | -8/Garrison | Triggered checkpoint 11693 | -8/Garrison | Garrison Relay disabled 11794 | -8/Garrison | Discovered new exit (range 10) 11940 | -8/Garrison | Expanded RIF knowledge: Robot Detection 11988 | -8/Garrison | Garrison Relay disabled 12043 | -8/Garrison | Entered Factory 12043 | -7/Factory | Evolved 2 slots: Propulsion x1, Utility x1 12327 | -7/Factory | Discovered new exit (range 7) 12369 | -7/Factory | Identified exit to DSF 12558 | -7/Factory | Sucked down chute 12558 | -7/Factory | Entered Waste 12559 | -7/Waste | Met a frightened Derelict 12570 | -7/Waste | Spotted C-40 Crusher 12570 | -7/Waste | Spotted C-40 Crusher 12573 | -7/Waste | EMP discharged 12656 | -7/Waste | Spotted C-40 Crusher 12667 | -7/Waste | Spotted C-40 Crusher 12673 | -7/Waste | EMP discharged 12673 | -7/Waste | System corruption reached 10% 12708 | -7/Waste | Spotted C-40 Crusher 12773 | -7/Waste | EMP discharged 12784 | -7/Waste | Destroyed C-40 Crusher 12796 | -7/Waste | Spotted C-40 Crusher 12828 | -7/Waste | Destroyed C-40 Crusher 12871 | -7/Waste | Destroyed C-40 Crusher 12873 | -7/Waste | EMP discharged 12956 | -7/Waste | Discovered new exit (range 11) 12970 | -7/Waste | Entered Factory 13059 | -7/Factory | Identified exit to DSF 13168 | -7/Factory | Entered DSF 13220 | -7/DSF | Additional patrols routed to DSF 13362 | -7/DSF | Discovered new exit (range 15) 13474 | -7/DSF | Sterilization system engaged 13494 | -7/DSF | Ambient heat levels rising (+10) 13509 | -7/DSF | Ambient heat levels rising (+10) 13524 | -7/DSF | Ambient heat levels rising (+10) 13534 | -7/DSF | Entered Factory 13534 | -6/Factory | Evolved 2 slots: Utility x1, Weapon x1 13769 | -6/Factory | Central database locked down 13842 | -6/Factory | Allied Derelicts emerged from ambush trap array 13847 | -6/Factory | Discovered new exit (range 9) 13886 | -6/Factory | Garrison activated, responded to threat 13998 | -6/Factory | Identified exit to Garrison 14003 | -6/Factory | Entered Garrison 14121 | -6/Garrison | Triggered checkpoint 14291 | -6/Garrison | Garrison Relay disabled 14415 | -6/Garrison | Build established: Bothacker-Tank 14419 | -6/Garrison | Spotted B-75 Beast 14468 | -6/Garrison | Destroyed B-75 Beast 14615 | -6/Garrison | Lost 3 parts (1n2w) 14701 | -6/Garrison | Triggered checkpoint 14785 | -6/Garrison | Discovered new exit (range 12) 14844 | -6/Garrison | Build established: Tank 14875 | -6/Garrison | Triggered checkpoint 15009 | -6/Garrison | Lost 3 parts (3u) 15048 | -6/Garrison | Garrison Relay disabled 15159 | -6/Garrison | Discovered new exit (range 30) 15159 | -6/Garrison | Discovered new exit (range 80) 15159 | -6/Garrison | Discovered new exit (range 72) 15217 | -6/Garrison | Learned Factory security intel 15295 | -6/Garrison | Triggered checkpoint 15344 | -6/Garrison | Triggered checkpoint 15403 | -6/Garrison | Lost 3 parts (3n) 15725 | -6/Garrison | Triggered checkpoint 15806 | -6/Garrison | Core integrity fell below 50% 15813 | -6/Garrison | Released all parts (4) 15829 | -6/Garrison | Expanded RIF knowledge: Hotswap 15844 | -6/Garrison | Lost 19 parts (2p4n9u4w) 15893 | -6/Garrison | Entered Factory 16040 | -6/Factory | Core integrity fell below 20% 16077 | -6/Factory | Build established: Mutant 16105 | -6/Factory | Found Exp. Targeting Computer 16177 | -6/Factory | Destroyed by S-27 Virus with Autogun Last Messages --------------- 16155_ Imp. Signal Interpreter tumbles out of TF Node. 16157_ Penetrated by Slug. 16159_ Adv. Weight Redist. System destroyed. 16160_ H-66 Slayer Lgt. Fission Core severed. 16161_ Penetrated by Slug. 16161_ Nuclear Pulse Thruster destroyed. 16164_ Penetrated by Slug. 16165_ Nuclear Pulse Thruster destroyed. 16165_ R-10 Processor collects Flexi-carbon Leg. 16166_ Destroyed Phase Shifter. 16168_ Lgt. Nuclear Core destroyed. 16168_ Slug penetrates Wall. 16169_ Penetrated by Slug. 16169_ Greatsword destroyed. 16169_ R-10 Processor collects Gauss Rifle. 16171_ Slug penetrates Wall. 16171_ R-10 Processor collects Hvy. Assault Rifle. 16172_ R-10 Processor collects Lgt. Fission Core. 16174_ Nuclear Pulse Thruster destroyed. 16177_ Dropped Remote Datajack. Map ----- +----------------------------------------------------+ | # #????????????????????????????????? | | # #????????????????????????????????? | | ##############????????????""??????????????????? | | #????????????????????????"""??????????????????? | | #???????????????????????? ??????????????????? | | #???????????????????????? ??????????????????? | | ! #???????????????????????? ???????????????????? | | =#???????????????????????? ???????????????????? | | #???????????????????????? ??????????#????????? | | #?????????????????????###+###?????? ##???????? | | ##############????????# ##### !????????? | | # ########## T" #???????? | | # / ? ! ! " ??????? | | # ########## #???????? | | # """ """ #????????#[ ? ##### #???????? | | # """ """ #????????### ###?????????????????? | | # """ """ #??????????#?#???????????????????? | | ]/ = #??????????#?#???????????????????? | | # """ """ #??????????# #???????????????????? | | # """ """ #??????????# #???????????????????? | | # """ """ #??????????# #???????????????????? | | # #??????????# #???????????????????? | | # #?????#+???# ###+##??????????????? | | ##############?????# #### #??????????????? | | #??????????????????# +??????????????? | | #??????????????????# @ ss #??????????????? | | ####??????????????????# """"s #??????????????? | | ??????????????????????#[ ""F"] #??????????????? | | ??????????????????????# ""]] #??????????????? | | ??????????????????????+ ] u #??????????????? | | ??????????????????????# #??????????????? | | ??????????????????????# #??????????????? | | ?????????????????????? ! / #??????????????? | | ?????????????????????########### ??????????????? | | ????????????????????????????????? ?????????????? | | ????????????????????????????????? ?????????????? | | ????????????????????????????????? ?????????????? | | ????????????????????????????????? ?????????????? | | ?????????????????????????????????????????????????? | | ?????????????????????????????????????????????????? | | ?????????????????????????????????????????????????? | | ?????????????????????????????????????????????????? | | ?????????????????????????????????????????????????? | | ?????????????????????????????????????????????????? | | ?????????????????????????????????????????????????? | | ?????????????????????????????????????????????????? | | ?????????????????????????????????????????????????? | | ?????????????????????????????????????????????????? | | ?????????????????????????????????????????????????? | | ?????????????????????????????????????????????????? | +----------------------------------------------------+ Best States ------------- Heat Dissipation 78 Energy Generation 21 Energy Capacity 325 Matter Stores 300 Matter Capacity 300 Sight Range 16 Robot Scan Range 16 Terrain Scan Density 10 Additional Mass Support 9 EM Shielding 2 Armor Coverage 1200 Utility Shielding 66 Evasion (%) 63 Targeting Accuracy 16 Recoil Reduction 5 Offensive Hacking 20 Relay Coupler Types 3 Relay Coupler Value 88 Item Schematics ----------------- Hcp. Storage Unit | -10/Materials | Hacked Huge Storage Unit | -9/Materials | Hacked Arm. Wheel | -9/Materials | Hacked Hrd. Medium Armor Plating | -8/Materials | Scanalyzed Imp. Medium Treads | -6/Factory | Scanalyzed Robot Schematics ------------------ M-13 Machinist | -9/Materials | Hacked O-16 Technician | -9/Materials | Hacked Fabricated ------------ Nothing Repaired ---------- Hrd. Medium Armor Plating | 25% | -8/Materials Studied --------- Arm. Wheel | -8/Materials | Hacked Hvy. Assault Cannon | -8/Materials | Hacked Arm. Huge Wheel | -6/Factory | Hacked Alien Tech Used ----------------- None Achievements -------------- Botjacking Ew, Corruption Let Me Out Of Here Live, Flee, And Rebuild Luggage Code May I Have Another? Physics Hates This One Trick Taming Of The Crushers Versatile You Will Be Upgraded Challenges ------------ None Game ------ Seed SignalWeightExtractor Manual? 0 Play Time 01:40:29 Cumulative 734.1 hours Start 2025.10.25 @ 16:22:47 End 2025.10.25 @ 18:00:29 Sessions 1 Manual Loads 0 Difficulty Rogue Special Mode None Game No. 462 Rogue 462 Adventurer 0 Explorer 0 Win Type - Total 10 Types 7/0/1/1/1/0/0/0/0/0 Lore% 79 Gallery% 78 Achievement% 52 Wizard Run 0 Options --------- Layout 0 ASCII 0 Keyboard 0 Movement Mouse Keybinds 1 Fullscreen 2 Font 24/Smallcaps Map View 76x50 Zoom Use 0% Tactical HUD 1 Map Filters NONE Filters NONE Steam 1 RUN: a2e81d75-6a50-4909-a20d-80e10b7a0281